Workbook

Sheet Data
B1: Part number | C1: XTA | D1: Machinist ID | E1: Machinist Name | F1: Forcast | G1: Actual | H1: Delta | I1: ACC %
B2: Part 1 | C2: 8007 | D2: 1 | E2: =IF(D2="","",INDEX(OFFSET(Mach_ID,0,1),MATCH(D2,Mach_ID,0))&" "&INDEX(OFFSET(Mach_ID,0,2),MATCH(D2,Mach_ID,0))) -> Brian Walmsley | F2: 6 | G2: 5 | H2: =F2-G2 -> 1 | I2: =1-F2/G2 -> -0.2 | K2: =I2-$O$5 -> -0.291957672 | L2: =K2^2 -> 0.08523928221 | N2: UCL | O2: 0.1
B3: Part 2 | C3: 8007 | D3: 55 | E3: Michael Willdig | F3: 4 | G3: 6 | H3: =F3-G3 -> -2 | I3: =1-F3/G3 -> 0.3333333333 | K3: =I3-$O$5 -> 0.2413756614 | L3: =K3^2 -> 0.0582622099 | N3: LCL | O3: -0.1
B4: Part 3 | C4: 8007 | D4: 1 | E4: Brian Walmsley | F4: 5 | G4: 4 | H4: 1 | I4: -0.25 | K4: =I4-$O$5 -> -0.341957672 | L4: 0.1169350494 | N4: Wrong STDEV | O4: =_xlfn.STDEV.P(I2:I16) -> 0.1993815218
B5: Part 4 | C5: 8007 | D5: 216 | E5: Anthony Cooper | F5: 6 | G5: 7 | H5: -1 | I5: 0.1428571429 | K5: =I5-$O$5 -> 0.0508994709 | L5: 0.002590756138 | N5: Xbar | O5: =AVERAGE(I:I) -> 0.09195767196
B6: Part 5 | C6: 7511 | D6: 1 | E6: Brian Walmsley | F6: 2 | G6: 3 | H6: -1 | I6: 0.3333333333 | K6: =I6-$O$5 -> 0.2413756614 | L6: 0.0582622099
B7: Part 6 | C7: 7511 | D7: 15 | E7: David Devaney | F7: 8 | G7: 8 | H7: 0 | I7: 0 | K7: =I7-$O$5 -> -0.09195767196 | L7: 0.008456213432
B8: Part 7 | C8: 7511 | D8: 1 | E8: Brian Walmsley | F8: 4 | G8: 4.5 | H8: -0.5 | I8: 0.1111111111 | K8: =I8-$O$5 -> 0.01915343915 | L8: 0.0003668542314
B9: Part 8 | C9: 7511 | D9: 1 | E9: Brian Walmsley | F9: 6 | G9: 8 | H9: -2 | I9: 0.25 | K9: =I9-$O$5 -> 0.158042328 | L9: 0.02497737745
B10: Part 9 | C10: 7511 | D10: 1 | E10: Brian Walmsley | F10: 4 | G10: 3.5 | H10: 0.5 | I10: -0.1428571429 | K10: =I10-$O$5 -> -0.2348148148 | L10: 0.05513799726
B11: Part 10 | C11: 8160 | D11: 15 | E11: David Devaney | F11: 4 | G11: 3.5 | H11: =F11-G11 -> 0.5 | I11: -0.1428571429 | K11: =I11-$O$5 -> -0.2348148148 | L11: 0.05513799726
B12: Part 11 | C12: 8160 | D12: 216 | E12: Anthony Cooper | F12: 8 | G12: 8 | H12: 0 | I12: 0 | K12: =I12-$O$5 -> -0.09195767196 | L12: 0.008456213432
B13: Part 12 | C13: 8160 | D13: 1 | E13: Brian Walmsley | F13: 10 | G13: 12 | H13: -2 | I13: 0.1666666667 | K13: =I13-$O$5 -> 0.07470899471 | L13: 0.00558143389
B14: Part 13 | C14: 8160 | D14: 15 | E14: David Devaney | F14: 4 | G14: 4.5 | H14: -0.5 | I14: 0.1111111111 | K14: =I14-$O$5 -> 0.01915343915 | L14: 0.0003668542314
B15: Part 14 | C15: 8160 | D15: 15 | E15: David Devaney | F15: 1 | G15: 1.5 | H15: -0.5 | I15: 0.3333333333 | K15: =I15-$O$5 -> 0.2413756614 | L15: 0.0582622099
B16: Part 15 | C16: 8160 | D16: 216 | E16: Anthony Cooper | F16: 0.5 | G16: 0.75 | H16: -0.25 | I16: 0.3333333333 | K16: =I16-$O$5 -> 0.2413756614 | L16: 0.0582622099
L17: =SUM(L2:L16) -> 0.5962948686
K18: STDEV | L18: =L17/COUNT(I2:I16) -> 0.03975299124
K19: CPL | L19: =(O5-O3)/(3*L18) -> 1.609586818
K20: CPU | L20: =(O2-O5)/(3*L18) -> 0.06743583138
K21: CPK | L21: =(MIN(L19:L20))/(3*L18) -> 0.5654570829
L22: =(O2-O3)/(6*L18) -> 0.8385113244
E66: =IF(D66="","",INDEX(OFFSET(Mach_ID,0,1),MATCH(D66,Mach_ID,0))&" "&INDEX(OFFSET(Mach_ID,0,2),MATCH(D66,Mach_ID,0))) -> 
E130: =IF(D130="","",INDEX(OFFSET(Mach_ID,0,1),MATCH(D130,Mach_ID,0))&" "&INDEX(OFFSET(Mach_ID,0,2),MATCH(D130,Mach_ID,0))) -> 
E194: =IF(D194="","",INDEX(OFFSET(Mach_ID,0,1),MATCH(D194,Mach_ID,0))&" "&INDEX(OFFSET(Mach_ID,0,2),MATCH(D194,Mach_ID,0))) -> 
E258: =IF(D258="","",INDEX(OFFSET(Mach_ID,0,1),MATCH(D258,Mach_ID,0))&" "&INDEX(OFFSET(Mach_ID,0,2),MATCH(D258,Mach_ID,0))) -> 
E322: =IF(D322="","",INDEX(OFFSET(Mach_ID,0,1),MATCH(D322,Mach_ID,0))&" "&INDEX(OFFSET(Mach_ID,0,2),MATCH(D322,Mach_ID,0))) -> 
E386: =IF(D386="","",INDEX(OFFSET(Mach_ID,0,1),MATCH(D386,Mach_ID,0))&" "&INDEX(OFFSET(Mach_ID,0,2),MATCH(D386,Mach_ID,0))) -> 

Sheet Machinists
B1: ID | C1: First Name | D1: Last Name
B2: 1 | C2: Brian | D2: Walmsley
B3: 15 | C3: David | D3: Devaney
B4: 28 | C4: Christopher | D4: Parsons
B5: 55 | C5: Michael | D5: Willdig
B6: 95 | C6: Tony | D6: Groves
B7: 208 | C7: Ian | D7: Evans
B8: 216 | C8: Anthony | D8: Cooper
B9: 218 | C9: Lewis | D9: Garnett
B10: 219 | C10: William | D10: Prince
B11: 221 | C11: Stephen | D11: Williams
B12: 486 | C12: Robert | D12: Walker
B13: 613 | C13: David | D13: Brain
B14: 614 | C14: James | D14: Badland
B15: n/a | C15: Jamie | D15: Elliot

Sheet Graphs
